fUSD/lending_fUSD_20251223
["ID","MTS","AMOUNT","RATE_DAILY","PERIOD"]
[399547096,1766473527436,-548.42,0.00042678,120]
[399547097,1766473527478,-548.42,0.00042678,120]
[399547098,1766473527525,-548.42,0.00042678,120]
[399547099,1766473527568,-548.42,0.00042678,120]
[399547100,1766473527612,-548.42,0.00042678,120]
[399547101,1766473527656,-548.42,0.00042678,120]
[399547102,1766473527700,-548.42,0.00042678,120]
[399547103,1766473527743,-548.42,0.00042678,120]
[399547104,1766473527786,-548.42,0.00042678,120]
[399547105,1766473527827,-548.42,0.00042678,120]
[399547106,1766473527872,-548.48148186,0.00042678,120]
[399547107,1766473527914,-500.0,0.00042678,120]
[399547108,1766473527957,-500.0,0.00042678,120]
[399547109,1766473528002,-500.0,0.00042678,120]
[399547110,1766473528044,-500.0,0.00042678,120]
[399547111,1766473528086,-500.0,0.00042678,120]
[399547112,1766473528127,-500.0,0.00042678,120]
[399547113,1766473528168,-443.36026168,0.00042678,120]
[399547114,1766473528210,-260.0,0.00042678,120]
[399547115,1766473528266,-500.0,0.00042678,120]
[399547116,1766473528309,-500.0,0.00042678,120]
[399547117,1766473528351,-500.0,0.00042678,120]
[399547118,1766473528391,-500.0,0.00042678,120]
[399547119,1766473528433,-500.0,0.00042678,120]
[399547120,1766473528475,-550.89895099,0.00042678,120]
[399547121,1766473528518,-186.40365103,0.00042678,120]
[399547122,1766473528560,-509.7088412,0.00042678,120]
[399547123,1766473528600,-505.79461348,0.00042678,120]
[399547124,1766473528643,-500.0,0.00042678,120]
[399547125,1766473528688,-183.03829048,0.00042678,120]
[399547126,1766473528733,-500.0,0.00042678,120]
[399547127,1766473528779,-500.0,0.00042678,120]
[399547128,1766473528826,-500.0,0.00042678,120]
[399547129,1766473528875,-500.0,0.00042678,120]
[399547130,1766473528919,-500.0,0.00042678,120]
[399547131,1766473528969,-500.0,0.00042678,120]
[399547132,1766473529016,-500.0,0.00042678,120]
[399547133,1766473529060,-500.0,0.00042678,120]
[399547134,1766473529106,-500.0,0.00042678,120]
[399547135,1766473529599,-500.0,0.00042678,120]
[399547136,1766473529640,-500.0,0.00042678,120]
[399547137,1766473529685,-500.0,0.00042678,120]
[399547138,1766473529728,-500.0,0.00042678,120]
[399547139,1766473529769,-479.37157655,0.00042678,120]
[399547140,1766473529811,-524.5655917,0.00042678,120]
[399547141,1766473529854,-500.0,0.00042678,120]
[399547142,1766473529900,-500.0,0.00042678,120]
[399547143,1766473529941,-500.0,0.00042678,120]
[399547144,1766473529990,-405.71518199,0.00042678,120]
[399547145,1766473530032,-510.83361931,0.00042678,90]
[399547146,1766473530074,-500.0,0.00042678,120]
[399547147,1766473530116,-500.0,0.00042678,120]
[399547148,1766473530158,-514.49941769,0.00042678,120]
[399547149,1766473530200,-21222.07423876,0.00042678,120]
[399547150,1766473530242,-260.0,0.00042678,120]
[399547151,1766473530287,-500.0,0.00042678,120]
[399547152,1766473530327,-500.0,0.00042678,120]
[399547153,1766473530368,-500.0,0.00042678,120]
[399547154,1766473530409,-500.0,0.00042678,120]
[399547155,1766473530455,-500.0,0.00042678,120]
[399547156,1766473530493,-500.0,0.00042678,120]
[399547157,1766473530533,-500.0,0.00042678,120]
[399547158,1766473530571,-503.90102821,0.00042678,120]
[399547159,1766473530609,-2334.48,0.00042678,120]
[399547160,1766473530647,-2334.48,0.00042678,120]
[399547161,1766473530685,-2334.48,0.00042678,120]
[399547162,1766473530722,-2334.48,0.00042678,120]
[399547163,1766473530761,-2334.48,0.00042678,120]
[399547164,1766473530798,-2334.48,0.00042678,120]
[399547165,1766473530835,-2334.48,0.00042678,120]
[399547166,1766473530875,-2334.48,0.00042678,120]
[399547167,1766473530914,-2334.48,0.00042678,120]
[399547168,1766473530953,-2334.48,0.00042678,120]
[399547169,1766473530992,-2334.48,0.00042678,120]
[399547170,1766473531031,-2334.48,0.00042678,120]
[399547171,1766473531079,-2334.48,0.00042678,120]
[399547172,1766473531128,-2334.48,0.00042678,120]
[399547173,1766473531171,-2334.48,0.00042678,120]
[399547174,1766473531213,-2334.48,0.00042678,120]
[399547175,1766473531258,-2334.48,0.00042678,120]
[399547176,1766473531301,-2334.48,0.00042678,120]
[399547177,1766473531343,-2334.48,0.00042678,120]
[399547178,1766473531384,-2334.48,0.00042678,120]
[399547179,1766473531426,-2334.48,0.00042678,120]
[399547180,1766473531467,-2334.48,0.00042678,120]
[399547181,1766473531513,-2334.48,0.00042678,120]
[399547182,1766473531553,-2334.59603199,0.00042678,120]
[399547183,1766473531591,-500.0,0.00042678,120]
[399547184,1766473531630,-1116.31,0.00042678,120]
[399547185,1766473531667,-1116.31,0.00042678,120]
[399547186,1766473531712,-1116.31,0.00042678,120]
[399547187,1766473531750,-1116.31,0.00042678,120]
[399547188,1766473531797,-1116.31,0.00042678,120]
[399547189,1766473531841,-1116.31,0.00042678,120]
[399547190,1766473531885,-1116.31,0.00042678,120]
[399547191,1766473531927,-1116.31,0.00042678,120]
[399547192,1766473531968,-1116.31,0.00042678,120]
[399547193,1766473532013,-1116.31,0.00042678,120]
[399547194,1766473532055,-1116.31,0.00042678,120]
[399547195,1766473532097,-1116.31,0.00042678,120]
[399547196,1766473532140,-1116.31,0.00042678,120]
[399547197,1766473532186,-1116.31,0.00042678,120]
[399547198,1766473532234,-1116.31,0.00042678,120]
[399547199,1766473532281,-1116.31,0.00042678,120]
[399547200,1766473532326,-1116.31,0.00042678,120]
[399547201,1766473532373,-1116.31,0.00042678,120]
[399547202,1766473532418,-1116.31,0.00042678,120]
[399547203,1766473532461,-1116.31,0.00042678,120]
[399547204,1766473532502,-1116.31,0.00042678,120]
[399547205,1766473532545,-1116.31,0.00042678,120]
[399547206,1766473532588,-1116.31,0.00042678,120]
[399547207,1766473532631,-1116.37474909,0.00042678,120]
[399547208,1766473532673,-500.0,0.00042678,120]
[399547209,1766473532716,-500.0,0.00042678,120]
[399547210,1766473532759,-784.88242984,0.00042678,120]
[399547211,1766473532800,-9287.32312039,0.00042678,30]
[399547212,1766473532840,-500.0,0.00042678,120]
[399547213,1766473532881,-500.0,0.00042678,120]
[399547214,1766473532921,-500.0,0.00042678,120]
[399547215,1766473532961,-507.91424442,0.00042678,120]
[399547216,1766473533002,-500.0,0.00042678,30]
[399547217,1766473533044,-22658.46301172,0.00042678,45]
[399547218,1766473533084,-336531.83684016,0.00042678,30]
[399547219,1766473533128,-7894.61975667,0.00042678,30]
[399547220,1766473533171,-3213.93084121,0.00042678,30]
[399547221,1766473533216,-73188.95396368,0.00042678,30]
[399547222,1766473533259,-7587.14603467,0.00042678,30]
[399547223,1766473533307,-3061.1328484,0.00042678,30]
[399547224,1766473533353,-2470.70869659,0.00042678,30]
[399547225,1766473533395,-27306.66900429,0.00042678,30]
[399547226,1766473533438,-200732.81135939,0.00042678,30]
[399547227,1766473533485,-26959.45661179,0.00042678,30]
[399547228,1766473533529,-29259.75721418,0.00042678,60]
[399547229,1766473533878,-67839.05306002,0.00042678,30]
[399547230,1766473533920,-1678241.75592924,0.00042678,30]
[399547235,1766473831936,-337.34,0.00014299,2]
[399547236,1766473831946,-195.0,0.00014299,2]
[399547237,1766473831955,-197.55,0.00014315,2]
[399547238,1766473831965,-1609.34571831,0.00014381,2]
[399547239,1766473832010,-243.07428169,0.00014381,2]
[399547240,1766473832022,-999.0,0.00014428,3]
[399547241,1766473832031,-1788.68676754,0.00014816,2]
[399547242,1766473832043,-1849.13491146,0.00014816,2]
[399547243,1766473832055,-1232.94344881,0.00014816,2]
[399547244,1766473832066,-754.82269806,0.00014816,2]
[399547245,1766473832078,-575.75,0.00014816,2]
[399547246,1766473832089,-5577.5273714,0.00014816,2]
[399547247,1766473832099,-204.26622274,0.00014816,2]
[399547248,1766473832108,-300.0,0.00014862,2]
[399547249,1766473832118,-143.76621913,0.00014862,2]
[399547250,1766473832130,-1056.23378087,0.00014862,2]
[399547251,1766473832140,-150.0,0.00014863,2]
[399547252,1766473832149,-128.60220727,0.00014863,2]
[399547253,1766473832164,-371.39779273,0.00014863,2]
[399547254,1766473832173,-27.44285501,0.00014863,2]
[399547255,1766473832184,-472.55714499,0.00014863,2]
[399547256,1766473832194,-415.58906729,0.00014863,2]
[399547257,1766473832205,-84.41093271,0.00014863,2]
[399547258,1766473832214,-208.56606731,0.00014863,2]
[399547263,1766473838730,-152.30639337,0.00014816,2]
[399547264,1766473838739,-291.43393269,0.00014863,2]
[399547265,1766473838749,-194.81504771,0.00014863,2]
[399547266,1766473838760,-305.18495229,0.00014863,2]
[399547267,1766473838769,-500.0,0.00014863,2]
[399547268,1766473838778,-500.0,0.00014863,2]
[399547269,1766473838788,-86.08517129,0.00014863,2]
[399547270,1766473838799,-413.91482871,0.00014863,2]
[399547271,1766473838808,-500.0,0.00014863,2]
[399547272,1766473838819,-516.35994255,0.00014863,2]
[399547273,1766473838829,-500.0,0.00014863,2]
[399547274,1766473838838,-500.0,0.00014863,2]
[399547275,1766473838848,-500.0,0.00014863,2]
[399547276,1766473838857,-500.0,0.00014863,2]
[399547277,1766473838866,-500.0,0.00014863,2]
[399547278,1766473838875,-500.0,0.00014863,2]
[399547279,1766473838884,-500.0,0.00014863,2]
[399547280,1766473838894,-500.0,0.00014863,2]
[399547281,1766473838903,-500.0,0.00014863,2]
[399547282,1766473838912,-500.0,0.00014863,2]
[399547283,1766473838921,-500.0,0.00014863,2]
[399547284,1766473838930,-500.0,0.00014863,2]
[399547285,1766473838939,-500.0,0.00014863,2]
[399547286,1766473838949,-500.0,0.00014863,2]
[399547287,1766473838958,-69821.7464377,0.00014864,2]
[399547288,1766473838970,-4071.55773437,0.00014864,2]
[399547289,1766473838981,-6769.46469655,0.00014864,2]
[399547290,1766473838993,-72096.80680299,0.00014864,2]
[399547291,1766473839006,-349.43400439,0.00014864,2]
[399547292,1766473839018,-400.0,0.00014864,2]
[399547293,1766473839034,-3341.54631403,0.00014864,2]
[399547296,1766473840556,-393.32997753,0.00014864,2]
[399547298,1766473840569,-437.1195,0.00014864,2]
[399547300,1766473840580,-282.0749985,0.00014864,2]
[399547326,1766473843126,-1559.19040186,0.00014864,2]
[399547332,1766473885373,-840477.72913208,0.00014864,2]
[399547333,1766473885383,-3967.1822,0.00014916,2]
[399547334,1766473885393,-235.9929,0.00014916,2]
[399547335,1766473885403,-2151.9488,0.00014916,2]
[399547336,1766473885413,-1000.0,0.00014917,2]
[399547337,1766473885423,-174.29,0.00014981,2]
[399547338,1766473885432,-15610.3470321,0.00014999,2]
[399547339,1766473885442,-38526.16005428,0.00015,2]
[399547340,1766473885456,-151.0,0.00015008,2]
[399547341,1766473885465,-151.0,0.00015008,2]
[399547342,1766473885475,-151.0,0.00015008,2]
[399547343,1766473885484,-151.0,0.00015008,2]
[399547344,1766473885494,-151.0,0.00015008,2]
[399547345,1766473885503,-151.0,0.00015008,2]
[399547346,1766473885512,-153.21186412,0.00015008,2]
[399547347,1766473885522,-11778.86519724,0.00015048,2]
[399547348,1766473885531,-3650.0,0.00015068,2]
[399547349,1766473885541,-581.0,0.00015114,2]
[399547350,1766473885550,-520.0,0.00015125,2]
[399547351,1766473885559,-254.08020516,0.00015125,2]
[399547352,1766473885569,-445.0,0.00015157,2]
[399547353,1766473885579,-200.0,0.00015188,2]
[399547354,1766473885588,-500.0,0.00015211,2]
[399547355,1766473885598,-500.0,0.00015211,2]
[399547356,1766473885607,-239.32,0.00015211,2]
[399547357,1766473885616,-11778.86519724,0.00015279,2]
[399547358,1766473885625,-500.0,0.00015288,2]
[399547359,1766473885634,-166.66,0.00015319,2]
[399547360,1766473885644,-150.0,0.00015412,2]
[399547361,1766473885653,-159.06,0.00015442,2]
[399547362,1766473885663,-500.0,0.00015454,2]
[399547363,1766473885672,-11778.86519724,0.00015511,2]
[399547364,1766473885682,-1000.0,0.00015621,2]
[399547365,1766473885691,-166.66,0.00015635,2]
[399547366,1766473885700,-759.31,0.0001567,2]
[399547367,1766473885886,-195.0,0.00015729,2]
[399547368,1766473885896,-11778.86519724,0.00015742,2]
[399547369,1766473885906,-166.67,0.00015889,2]
[399547370,1766473885916,-166.66,0.00015951,2]
[399547371,1766473885925,-11778.86519724,0.00015974,2]
[399547372,1766473885934,-1600.0,0.00016099,2]
[399547373,1766473885944,-1000.0,0.000161,2]
[399547374,1766473885953,-200.0,0.00016149,2]
[399547375,1766473885963,-207.4,0.00016149,2]
[399547376,1766473885972,-215.0738,0.00016149,2]
[399547377,1766473885982,-223.0315306,0.00016149,2]
[399547378,1766473885991,-231.28369723,0.00016149,2]
[399547379,1766473886001,-239.84119403,0.00016149,2]
[399547380,1766473886011,-248.71531821,0.00016149,2]
[399547381,1766473886020,-257.91778498,0.00016149,2]
[399547382,1766473886030,-166.66,0.00016267,2]
[399547383,1766473886039,-787.0,0.00016342,2]
[399547384,1766473886049,-166.0,0.00016348,2]
[399547385,1766473886059,-8451.5,0.00016438,2]
[399547386,1766473886069,-10003.3,0.00016438,2]
[399547387,1766473886079,-800.56570297,0.00016438,2]
[399547388,1766473886089,-166.66,0.00016582,2]
[399547389,1766473886099,-787.0,0.00016621,2]
[399547390,1766473886108,-241.0,0.00016626,2]
[399547391,1766473886118,-4225.11351284,0.0001666,2]
[399547392,1766473886128,-150.0,0.00016699,2]
[399547393,1766473886137,-150.0,0.00016699,2]
[399547394,1766473886147,-150.0,0.00016699,2]
[399547395,1766473886156,-150.0,0.00016699,2]
[399547396,1766473886165,-156.04699781,0.00016699,2]
[399547397,1766473886174,-152.24328281,0.00016699,2]
[399547398,1766473886183,-150.0,0.00016699,2]
[399547399,1766473886193,-150.0,0.00016699,2]
[399547400,1766473886203,-150.0,0.00016699,2]
[399547401,1766473886212,-151.45388092,0.00016699,2]
[399547402,1766473886222,-150.0,0.00016699,2]
[399547403,1766473886232,-500.0,0.00016699,2]
[399547404,1766473886241,-500.0,0.00016699,2]
[399547405,1766473886250,-500.0,0.00016699,2]
[399547406,1766473886259,-500.0,0.00016699,2]
[399547407,1766473886269,-500.0,0.00016699,2]
[399547408,1766473886280,-150.0,0.00016699,2]
[399547409,1766473886289,-500.0,0.00016699,2]
[399547410,1766473886298,-500.0,0.00016699,2]
[399547411,1766473886307,-1000.0,0.000167,2]
[399547412,1766473886316,-150.0,0.00016726,2]
[399547413,1766473886326,-150.0,0.00016726,2]
[399547414,1766473886335,-150.0,0.00016726,2]
[399547415,1766473886344,-150.0,0.00016726,2]
[399547416,1766473886354,-206.73241597,0.00016726,2]
[399547417,1766473886363,-150.0,0.00016726,2]
[399547418,1766473886373,-500.0,0.00016726,2]
[399547419,1766473886382,-150.0,0.00016726,2]
[399547420,1766473886391,-500.0,0.00016726,2]
[399547421,1766473886400,-500.0,0.00016726,2]
[399547422,1766473886410,-500.0,0.00016726,2]
[399547423,1766473886421,-500.0,0.00016726,2]
[399547424,1766473886430,-150.0,0.00016726,2]
[399547425,1766473886440,-500.0,0.00016726,2]
[399547426,1766473886452,-500.0,0.00016726,2]
[399547427,1766473886462,-241.0,0.00016739,2]
[399547428,1766473886471,-150.0,0.00016754,2]
[399547429,1766473886482,-150.0,0.00016754,2]
[399547430,1766473886491,-223.15728325,0.00016754,2]
[399547431,1766473886501,-150.0,0.00016754,2]
[399547432,1766473886510,-150.0,0.00016754,2]
[399547433,1766473886519,-500.0,0.00016754,2]
[399547434,1766473886530,-150.0,0.00016754,2]
[399547435,1766473886539,-500.0,0.00016754,2]
[399547436,1766473886549,-500.0,0.00016754,2]
[399547437,1766473886558,-500.0,0.00016754,2]
[399547438,1766473886567,-272.46378967,0.00016754,2]
[399547439,1766473886577,-500.0,0.00016754,2]
[399547440,1766473886587,-500.0,0.00016754,2]
[399547441,1766473886596,-168.39567011,0.00016781,2]
[399547442,1766473886605,-160.24705155,0.00016781,2]
[399547443,1766473886615,-205.63432369,0.00016781,2]
[399547444,1766473886624,-150.82734528,0.00016781,2]
[399547445,1766473886633,-157.32824713,0.00016781,2]
[399547446,1766473886642,-150.0,0.00016781,2]
[399547447,1766473886651,-500.0,0.00016781,2]
[399547448,1766473886660,-500.0,0.00016781,2]
[399547449,1766473886672,-500.0,0.00016781,2]
[399547450,1766473886681,-500.0,0.00016781,2]
[399547451,1766473886691,-500.0,0.00016781,2]
[399547452,1766473886700,-241.0,0.00016785,2]
[399547453,1766473886710,-207.3149885,0.00016809,2]
[399547454,1766473886720,-500.0,0.00016809,2]
[399547455,1766473886730,-500.0,0.00016809,2]
[399547456,1766473886739,-500.0,0.00016809,2]
[399547457,1766473886748,-331.16189446,0.00016809,2]
[399547458,1766473886758,-500.0,0.00016809,2]
[399547459,1766473886768,-10000.0,0.00016822,2]
[399547460,1766473886777,-500.0,0.00016836,2]
[399547461,1766473886787,-500.0,0.00016836,2]
[399547462,1766473886796,-500.0,0.00016836,2]
[399547463,1766473886805,-500.0,0.00016836,2]
[399547464,1766473886814,-332.18436554,0.00016863,2]
[399547465,1766473886823,-500.0,0.00016863,2]
[399547466,1766473886833,-500.0,0.00016863,2]
[399547467,1766473886843,-500.0,0.00016863,2]
[399547468,1766473886852,-200.0,0.00016864,2]
[399547469,1766473886862,-568.69580303,0.00016891,2]
[399547470,1766473886871,-500.0,0.00016891,2]
[399547471,1766473886880,-500.0,0.00016891,2]
[399547472,1766473886890,-158.0044648,0.000169,2]
[399547473,1766473886899,-204.73820807,0.000169,2]
[399547474,1766473886908,-500.0,0.000169,2]
[399547475,1766473886918,-500.0,0.000169,2]
[399547476,1766473886928,-500.0,0.000169,2]
[399547477,1766473886937,-500.0,0.000169,2]
[399547478,1766473886946,-500.0,0.000169,2]
[399547479,1766473886955,-500.0,0.000169,2]
[399547480,1766473886964,-500.0,0.000169,2]
[399547481,1766473886974,-500.0,0.000169,2]
[399547482,1766473886983,-500.0,0.000169,2]
[399547483,1766473886992,-500.0,0.000169,2]
[399547484,1766473887002,-500.0,0.000169,2]
[399547485,1766473887011,-500.0,0.000169,2]
[399547486,1766473887020,-500.0,0.000169,2]
[399547487,1766473887030,-500.0,0.000169,2]
[399547488,1766473887039,-500.0,0.000169,2]
[399547489,1766473887062,-500.0,0.000169,2]
[399547490,1766473887079,-500.0,0.000169,2]
[399547491,1766473887101,-500.0,0.000169,2]
[399547492,1766473887116,-500.0,0.000169,2]
[399547493,1766473887137,-500.0,0.000169,2]
[399547494,1766473887156,-500.0,0.000169,2]
[399547495,1766473887175,-500.0,0.000169,2]
[399547496,1766473887192,-500.0,0.000169,2]
[399547497,1766473887210,-500.0,0.000169,2]
[399547498,1766473887228,-500.0,0.000169,2]
[399547499,1766473887247,-420.10008661,0.000169,2]
[399547500,1766473887261,-3483.1392332,0.00016908,2]
[399547501,1766473887280,-241.0,0.00016912,2]
[399547502,1766473887292,-500.0,0.00016918,2]
[399547503,1766473887308,-500.0,0.00016918,2]
[399547504,1766473887323,-500.0,0.00016946,2]
[399547505,1766473887339,-500.0,0.00016946,2]
[399547506,1766473887354,-241.0,0.00016958,2]
[399547507,1766473887369,-500.0,0.00016973,2]
[399547508,1766473887384,-500.0,0.00016973,2]
[399547509,1766473887399,-367.89785786,0.00016973,2]
[399547510,1766473887414,-500.0,0.00016973,2]
[399547511,1766473887429,-500.0,0.00016973,2]
[399547512,1766473887445,-500.0,0.00016973,2]
[399547513,1766473887463,-501.16055069,0.00016973,2]
[399547514,1766473887478,-501.02286688,0.00016973,2]
[399547515,1766473887492,-501.03274944,0.00016973,2]
[399547516,1766473887508,-577.35819012,0.00016973,2]
[399547517,1766473887523,-500.0,0.00016973,2]
[399547518,1766473887537,-500.0,0.00016973,2]
[399547519,1766473887552,-500.0,0.00016973,2]
[399547520,1766473887567,-500.0,0.00016973,2]
[399547521,1766473887581,-500.0,0.00016973,2]
[399547522,1766473887595,-154.81071554,0.00016973,2]
[399547523,1766473887609,-500.0,0.00016973,2]
[399547524,1766473887624,-500.73373882,0.00016973,2]
[399547525,1766473887639,-501.26466692,0.00016973,2]
[399547526,1766473887653,-500.0,0.00016973,2]
[399547527,1766473887668,-500.0,0.00016973,2]
[399547528,1766473887682,-500.0,0.00016973,2]
[399547529,1766473887697,-500.0,0.00016973,2]
[399547530,1766473887711,-500.0,0.00016973,2]
[399547531,1766473887726,-211.71097103,0.00016973,2]
[399547532,1766473887741,-500.0,0.00016973,2]
[399547533,1766473887754,-500.0,0.00016973,2]
[399547534,1766473887770,-500.0,0.00016973,2]
[399547535,1766473887784,-500.4877743,0.00016973,2]
[399547536,1766473887799,-500.0,0.00016973,2]
[399547537,1766473887813,-501.32447433,0.00016973,2]
[399547538,1766473887829,-502.01127831,0.00016973,2]
[399547539,1766473887844,-500.0,0.00016973,2]
[399547540,1766473887860,-500.0,0.00016973,2]
[399547541,1766473887875,-150.0,0.00016973,2]
[399547542,1766473887891,-241.0,0.00016976,2]
[399547543,1766473887906,-317.19636672,0.00016983,2]
[399547544,1766473887922,-500.0,0.00016986,2]
[399547545,1766473887936,-76965.41,0.00016986,2]
[399547546,1766473887951,-11881.0,0.00016999,2]
[399547547,1766473887965,-1500.0,0.00016999,2]
[399547548,1766473887981,-1500.0,0.00016999,2]
[399547549,1766473887997,-1500.0,0.00016999,2]
[399547550,1766473888013,-1500.0,0.00016999,2]
[399547551,1766473888029,-1500.0,0.00016999,2]
[399547552,1766473888044,-1500.0,0.00016999,2]
[399547553,1766473888060,-1500.0,0.00016999,2]
[399547554,1766473888077,-1500.0,0.00016999,2]
[399547555,1766473888092,-1500.0,0.00016999,2]
[399547556,1766473888106,-1500.0,0.00016999,2]
[399547557,1766473888122,-1500.0,0.00016999,2]
[399547558,1766473888137,-1500.0,0.00016999,2]
[399547559,1766473888157,-1500.0,0.00016999,2]
[399547560,1766473888173,-1500.0,0.00016999,2]
[399547561,1766473888190,-1500.0,0.00016999,2]
[399547562,1766473888206,-1500.0,0.00016999,2]
[399547563,1766473888221,-1500.0,0.00016999,2]
[399547564,1766473888237,-1500.0,0.00016999,2]
[399547565,1766473888253,-1500.0,0.00016999,2]
[399547566,1766473888269,-1500.0,0.00016999,2]
[399547567,1766473888286,-1500.0,0.00016999,2]
[399547568,1766473888301,-1500.0,0.00016999,2]
[399547569,1766473888317,-1500.0,0.00016999,2]
[399547570,1766473888334,-1500.0,0.00016999,2]
[399547571,1766473888349,-1500.0,0.00016999,2]
[399547572,1766473888365,-1500.0,0.00016999,2]
[399547573,1766473888380,-1500.0,0.00016999,2]
[399547574,1766473888395,-1500.0,0.00016999,2]
[399547575,1766473888409,-1500.0,0.00016999,2]
[399547576,1766473888424,-1500.0,0.00016999,2]
[399547577,1766473888440,-756.67158664,0.00016999,2]
[399547578,1766473888456,-311.05061399,0.00016999,2]
[399547579,1766473888471,-300.0,0.00016999,2]
[399547580,1766473888488,-300.0,0.00016999,2]
[399547581,1766473888502,-551.04832137,0.00016999,2]
[399547582,1766473888517,-150.0,0.00017,2]
[399547583,1766473888534,-4905352.78256742,0.00017,2]
[399547584,1766473888548,-1505819.85671699,0.00017,2]
[399547585,1766473888564,-250.0,0.00017,2]
[399547586,1766473888579,-500.0,0.00017,2]
[399547587,1766473888593,-1154.512966,0.00017,2]
[399547588,1766473888607,-151.0,0.00017,2]
[399547589,1766473888622,-151.0,0.00017,2]
[399547590,1766473888637,-180.013014,0.00017,2]
[399547591,1766473888652,-151.0,0.00017,2]
[399547592,1766473888667,-151.0,0.00017,2]
[399547593,1766473888682,-151.0,0.00017,2]
[399547594,1766473888696,-151.0,0.00017,2]
[399547595,1766473888711,-151.0,0.00017,2]
[399547596,1766473888726,-1000.0,0.00017,2]
[399547597,1766473888741,-152.666571,0.00017,2]
[399547598,1766473888755,-281.12971,0.00017,2]
[399547599,1766473888769,-151.0,0.00017,2]
[399547600,1766473888784,-151.0,0.00017,2]
[399547601,1766473888799,-151.0,0.00017,2]
[399547602,1766473888813,-151.0,0.00017,2]
[399547603,1766473888827,-151.0,0.00017,2]
[399547604,1766473888842,-155.22399095,0.00017,2]
[399547605,1766473888856,-251.301274,0.00017,2]
[399547606,1766473888871,-251.301274,0.00017,2]
[399547607,1766473889128,-251.301274,0.00017,2]
[399547608,1766473889138,-251.301274,0.00017,2]
[399547609,1766473889147,-151.0,0.00017,2]
[399547610,1766473889157,-159.065073,0.00017,2]
[399547611,1766473889166,-159.065073,0.00017,2]
[399547612,1766473889176,-237.258415,0.00017,2]
[399547613,1766473889185,-159.065073,0.00017,2]
[399547614,1766473889195,-237.258415,0.00017,2]
[399547615,1766473889205,-159.065073,0.00017,2]
[399547616,1766473889214,-237.258415,0.00017,2]
[399547617,1766473889224,-237.258415,0.00017,2]
[399547618,1766473889233,-275.20158,0.00017,2]
[399547619,1766473889243,-151.0,0.00017,2]
[399547620,1766473889252,-151.0,0.00017,2]
[399547621,1766473889262,-500.0,0.00017,2]
[399547622,1766473889272,-241.0,0.00017005,2]
[399547623,1766473889282,-241.0,0.00017011,2]
[399547624,1766473889291,-241.0,0.00017032,2]
[399547625,1766473889301,-241.0,0.00017089,2]
[399547626,1766473889310,-241.0,0.00017092,2]
[399547627,1766473889320,-241.0,0.00017099,2]
[399547628,1766473889329,-241.0,0.00017124,2]
[399547629,1766473889338,-241.0,0.0001716,2]
[399547630,1766473889348,-152.53710827,0.00017176,2]
[399547631,1766473889357,-241.0,0.00017192,2]
[399547632,1766473889367,-166.67,0.000172,2]
[399547633,1766473889376,-158.51,0.00017215,2]
[399547634,1766473889386,-1098.0,0.00017238,2]
[399547635,1766473889395,-241.0,0.00017266,2]
[399547636,1766473889404,-777.1934149,0.00017334,2]
[399547637,1766473889414,-166.66,0.00017411,2]